[Event "3rd CNE NED-ch Women Rapid 2017"]
[Site "Amstelveen"]
[Date "2017.12.03"]
[Round "6"]
[White "Lanchava, Tea"]
[Black "Keetman, Maaike"]
[Result "1-0"]
[ECO "A10"]
[WhiteElo "2297"]
[BlackElo "2203"]
[Annotator "NA"]
[PlyCount "91"]
[EventDate "2017.??.??"]
[EventType "tourn"]
[EventCountry "NED"]
[SourceTitle "playchess.com"]
[Source "ChessBase"]
[SourceQuality "1"]
[TimeControl "900+10"]

1. c4 {[%emt 0:00:00]} g6 {[%emt 0:00:07]} 2. g3 {[%emt 0:00:00]} Bg7 {[%emt 0:00:03]} 3. Bg2 {[%emt 0:00:00]} d6 {[%emt 0:00:06]} 4. Nc3 {[%emt 0:00:02]} e5 {[%emt 0:00:08]} 5. d3 {[%emt 0:00:05]} Ne7 {[%emt 0:00:18]} 6. e4 {[%emt 0:00:04]} O-O {[%emt 0:00:08]} 7. Nge2 {[%emt 0:00:02]} c5 {[%emt 0:00:15]} 8. O-O {[%emt 0:00:04]} Nbc6 {[%emt 0:00:01]} 9. f4 {[%emt 0:00:12]} a6 {[%emt 0:00:40]} 10. Be3 {[%emt 0:00:10]} Nd4 {[%emt 0:00:19]} 11. Qd2 {[%emt 0:00:19]} Rb8 {[%emt 0:00:23]} 12. Bxd4 {[%emt 0:00:56]} cxd4 {[%emt 0:00:22]} 13. Nd5 {[%emt 0:00:08]} Nxd5 {[%emt 0:05:48]} 14. cxd5 {[%emt 0:00:15]} f5 {[%emt 0:00:46]} 15. Qb4 {[%emt 0:01:07]} a5 {[%emt 0:01:51]} 16. Qb3 {[%emt 0:00:20]} Kh8 {[%emt 0:00:04]} 17. Rac1 {[%emt 0:00:11]} Bd7 {[%emt 0:00:41]} 18. Qa3 {[%emt 0:00:09]} Qb6 {[%emt 0:00:45]} 19. fxe5 {[%emt 0:00:31]} Bxe5 {[%emt 0:00:53]} 20. Nf4 {[%emt 0:01:21]} fxe4 {[%emt 0:00:32]} 21. Bxe4 {[%emt 0:01:00]} Bxf4 {[%emt 0:00:22]} 22. gxf4 {[%emt 0:00:03]} Rbc8 {[%emt 0:00:33]} 23. b3 {[%emt 0:00:25]} Bh3 {[%emt 0:00:38]} 24. Rf3 {[%emt 0:01:46]} Bg4 {[%emt 0:00:12]} 25. Rf2 {[%emt 0:00:07]} Rc3 {[%emt 0:00:21]} 26. Qb2 {[%emt 0:00:26]} Qc5 {[%emt 0:00:17]} 27. Re1 {[%emt 0:00:26]} Bf5 {[%emt 0:00:48]} 28. Qe2 {[%emt 0:00:16]} Re8 {[%emt 0:00:16]} 29. Qf3 {[%emt 0:00:15]} Kg7 {[%emt 0:01:04]} 30. Rfe2 {[%emt 0:00:17]} Bxe4 {[%emt 0:00:16]} 31. Rxe4 {[%emt 0:00:05]} Rxe4 {[%emt 0:00:33]} 32. Rxe4 {[%emt 0:01:36]} Rc1+ {[%emt 0:00:02]} 33. Kg2 {[%emt 0:00:01]} Rc2+ {[%emt 0:00:09]} 34. Kh3 {[%emt 0:00:07]} Rxa2 35. f5 {[%emt 0:03:03]} Qc8 {[%emt 0:00:57]} 36. Re6 {[%emt 0:00:07]} gxf5 {[%emt 0:00:10]} 37. Qf4 {[%emt 0:00:32]} Rc2 {[%emt 0:00:20]} 38. Qg5+ {[%emt 0:00:56]} Kh8 {[%emt 0:00:03]} 39. Qf6+ {[%emt 0:00:45]} Kg8 {[%emt 0:00:01]} 40. Rxd6 {[%emt 0:00:08]} f4+ {[%emt 0:00:07]} 41. Re6 {[%emt 0:00:01]} Re2 {[%emt 0:00:12]} 42. Qe7 {[%emt 0:01:16]} f3 {[%emt 0:00:16]} 43. Kg3 {[%emt 0:00:11]} f2 {[%emt 0:00:01]} 44. Qg5+ {[%emt 0:00:32]} Kh8 {[%emt 0:00:18]} 45. Qf6+ {[%emt 0:00:01]} Kg8 {[%emt 0:00:01]} 46. Rxe2 {[%emt 0:00:03]} 1-0

[Event "3rd CNE NED-ch Women Rapid 2017"]
[Site "Amstelveen"]
[Date "2017.12.03"]
[Round "6"]
[White "Paulet, Iozefina"]
[Black "De Mie, Mariska"]
[Result "1-0"]
[ECO "B06"]
[WhiteElo "2272"]
[BlackElo "2242"]
[Annotator "NA"]
[PlyCount "79"]
[EventDate "2017.??.??"]
[EventType "tourn"]
[EventCountry "NED"]
[SourceTitle "playchess.com"]
[Source "ChessBase"]
[SourceQuality "1"]
[TimeControl "900+10"]

1. e4 {[%emt 0:00:00]} d6 {[%emt 0:00:06]} 2. d4 {[%emt 0:00:00]} g6 {[%emt 0:00:01]} 3. Nc3 {[%emt 0:00:00]} Bg7 {[%emt 0:00:02]} 4. Nf3 {[%emt 0:00:00]} a6 {[%emt 0:00:05]} 5. Be3 {[%emt 0:00:00]} b5 {[%emt 0:00:17]} 6. Bd3 {[%emt 0:00:00]} Nd7 {[%emt 0:00:15]} 7. Qd2 {[%emt 0:00:10]} Bb7 {[%emt 0:00:16]} 8. a4 {[%emt 0:01:54]} b4 {[%emt 0:00:28]} 9. Ne2 {[%emt 0:00:05]} Ngf6 {[%emt 0:01:28]} 10. Ng3 {[%emt 0:00:19]} a5 {[%emt 0:00:22]} 11. h3 {[%emt 0:00:55]} h6 {[%emt 0:02:17]} 12. O-O {[%emt 0:00:09]} e6 {[%emt 0:00:14]} 13. c4 {[%emt 0:00:33]} e5 {[%emt 0:01:20]} 14. dxe5 {[%emt 0:00:21]} dxe5 {[%emt 0:00:12]} 15. c5 {[%emt 0:00:07]} Qe7 {[%emt 0:01:40]} 16. c6 {[%emt 0:02:17]} Bxc6 {[%emt 0:00:20]} 17. Rfc1 {[%emt 0:00:01]} Qd6 {[%emt 0:01:00]} 18. Qc2 {[%emt 0:00:43]} Bb7 {[%emt 0:01:43]} 19. Bb5 {[%emt 0:00:06]} O-O {[%emt 0:00:22]} 20. Rd1 {[%emt 0:02:23]} Qe6 {[%emt 0:00:48]} 21. Qxc7 {[%emt 0:00:06]} Bc8 {[%emt 0:00:48]} 22. Rd6 {[%emt 0:00:12]} Ne8 {[%emt 0:00:13]} 23. Qxc8 {[%emt 0:01:52]} Nxd6 {[%emt 0:00:45]} 24. Qxd7 {[%emt 0:00:04]} Qxd7 {[%emt 0:00:35]} 25. Bxd7 {[%emt 0:00:02]} Nc4 {[%emt 0:00:16]} 26. Bb5 {[%emt 0:03:57]} Nxe3 {[%emt 0:00:11]} 27. fxe3 {[%emt 0:00:01]} Rac8 {[%emt 0:00:17]} 28. Ne1 {[%emt 0:00:06]} Rfd8 {[%emt 0:00:11]} 29. Nf1 {[%emt 0:00:01]} Bf8 {[%emt 0:01:16]} 30. Kf2 {[%emt 0:00:02]} f5 {[%emt 0:00:35]} 31. Ke2 {[%emt 0:00:13]} Kf7 {[%emt 0:00:13]} 32. Nd2 {[%emt 0:00:04]} Ke6 {[%emt 0:00:59]} 33. exf5+ {[%emt 0:00:27]} gxf5 {[%emt 0:00:02]} 34. Nc4 {[%emt 0:00:02]} Ra8 {[%emt 0:00:11]} 35. Nd3 {[%emt 0:00:04]} Bd6 {[%emt 0:00:15]} 36. g4 {[%emt 0:00:55]} fxg4 {[%emt 0:00:15]} 37. hxg4 {[%emt 0:00:01]} Rf8 {[%emt 0:00:20]} 38. Rh1 {[%emt 0:00:06]} Rf6 {[%emt 0:00:04]} 39. Rh5 {[%emt 0:00:11]} e4 {[%emt 0:00:10]} 40. Nf2 {[%emt 0:00:12]} 1-0

[Event "3rd CNE NED-ch Women Rapid 2017"]
[Site "Amstelveen"]
[Date "2017.12.03"]
[Round "6"]
[White "De Jong-Muhren, Bianca"]
[Black "Ratsma, Rosa"]
[Result "1-0"]
[ECO "B90"]
[WhiteElo "2262"]
[BlackElo "2295"]
[Annotator "NA"]
[PlyCount "83"]
[EventDate "2017.??.??"]
[EventType "tourn"]
[EventCountry "NED"]
[SourceTitle "playchess.com"]
[Source "ChessBase"]
[SourceQuality "1"]
[TimeControl "900+10"]

1. e4 {[%emt 0:00:00]} c5 {[%emt 0:00:02]} 2. Nf3 {[%emt 0:00:00]} d6 {[%emt 0:00:02]} 3. d4 {[%emt 0:00:00]} cxd4 {[%emt 0:00:03]} 4. Nxd4 {[%emt 0:00:00]} Nf6 {[%emt 0:00:03]} 5. Nc3 {[%emt 0:00:00]} a6 {[%emt 0:00:02]} 6. Be3 {[%emt 0:00:05]} e5 {[%emt 0:00:04]} 7. Nf3 {[%emt 0:00:02]} Qc7 {[%emt 0:00:05]} 8. a4 {[%emt 0:00:04]} Be6 {[%emt 0:00:41]} 9. a5 {[%emt 0:00:31]} Nbd7 {[%emt 0:00:37]} 10. Ng5 {[%emt 0:03:28]} Bc4 {[%emt 0:00:45]} 11. Bxc4 {[%emt 0:00:55]} Qxc4 {[%emt 0:00:03]} 12. Ra4 {[%emt 0:00:04]} Qc6 {[%emt 0:00:28]} 13. O-O {[%emt 0:02:11]} h6 {[%emt 0:00:20]} 14. Nf3 {[%emt 0:00:27]} Be7 {[%emt 0:02:46]} 15. Nh4 {[%emt 0:00:05]} g6 {[%emt 0:00:57]} 16. h3 {[%emt 0:01:18]} Nh5 {[%emt 0:03:27]} 17. Qg4 {[%emt 0:02:49]} Ndf6 {[%emt 0:01:17]} 18. Qe2 {[%emt 0:00:25]} Rc8 {[%emt 0:01:03]} 19. Rd1 {[%emt 0:01:02]} Ng7 {[%emt 0:01:20]} 20. Nf3 {[%emt 0:01:34]} Ne6 {[%emt 0:00:25]} 21. Nd2 {[%emt 0:00:59]} d5 {[%emt 0:00:42]} 22. exd5 {[%emt 0:00:13]} Nxd5 {[%emt 0:00:14]} 23. Rc4 {[%emt 0:00:32]} Ndf4 {[%emt 0:01:07]} 24. Bxf4 {[%emt 0:00:44]} Nxf4 {[%emt 0:00:04]} 25. Qf1 {[%emt 0:00:42]} Qe6 {[%emt 0:00:14]} 26. Rxc8+ {[%emt 0:00:14]} Qxc8 {[%emt 0:00:02]} 27. Nc4 {[%emt 0:00:08]} O-O {[%emt 0:00:25]} 28. Nxe5 {[%emt 0:00:06]} Qe6 {[%emt 0:00:47]} 29. Ng4 {[%emt 0:00:13]} h5 {[%emt 0:00:19]} 30. Re1 {[%emt 0:00:13]} Qd7 {[%emt 0:00:11]} 31. Ne5 {[%emt 0:00:03]} Qf5 {[%emt 0:00:13]} 32. Nd3 {[%emt 0:00:36]} Bb4 {[%emt 0:00:32]} 33. Nxb4 {[%emt 0:00:05]} Qxa5 {[%emt 0:00:09]} 34. Qc4 {[%emt 0:00:03]} Ne6 {[%emt 0:00:30]} 35. Nbd5 {[%emt 0:00:05]} Kg7 {[%emt 0:00:17]} 36. Qd3 {[%emt 0:00:14]} Rd8 {[%emt 0:00:11]} 37. Qf3 {[%emt 0:00:03]} Kg8 {[%emt 0:00:27]} 38. b4 {[%emt 0:00:11]} Qa3 {[%emt 0:00:12]} 39. Qf6 {[%emt 0:00:02]} Rf8 {[%emt 0:00:10]} 40. Ne7+ {[%emt 0:00:24]} Kh7 {[%emt 0:00:01]} 41. Rxe6 {[%emt 0:00:16]} Qxb4 {[%emt 0:00:30]} 42. Re3 {[%emt 0:00:22]} 1-0

[Event "3rd CNE NED-ch Women Rapid 2017"]
[Site "Amstelveen"]
[Date "2017.12.03"]
[Round "7"]
[White "Ratsma, Rosa"]
[Black "Haast, Anne"]
[Result "0-1"]
[ECO "C84"]
[WhiteElo "2295"]
[BlackElo "2332"]
[Annotator "NA"]
[PlyCount "72"]
[EventDate "2017.??.??"]
[EventType "tourn"]
[EventCountry "NED"]
[SourceTitle "playchess.com"]
[Source "ChessBase"]
[SourceQuality "1"]
[TimeControl "900+10"]

1. e4 {[%emt 0:00:00]} e5 {[%emt 0:00:04]} 2. Nf3 {[%emt 0:00:00]} Nc6 {[%emt 0:00:02]} 3. Bb5 {[%emt 0:00:00]} a6 {[%emt 0:00:02]} 4. Ba4 {[%emt 0:00:00]} Nf6 {[%emt 0:00:03]} 5. O-O {[%emt 0:00:04]} Be7 {[%emt 0:00:09]} 6. d3 {[%emt 0:00:06]} b5 {[%emt 0:00:16]} 7. Bb3 {[%emt 0:00:02]} d6 {[%emt 0:00:01]} 8. a3 {[%emt 0:00:04]} O-O {[%emt 0:00:05]} 9. Nc3 {[%emt 0:00:04]} Nd4 {[%emt 0:00:28]} 10. Nxd4 {[%emt 0:00:14]} exd4 {[%emt 0:00:02]} 11. Nd5 {[%emt 0:00:13]} Nxd5 {[%emt 0:00:09]} 12. Bxd5 {[%emt 0:00:06]} Rb8 {[%emt 0:00:04]} 13. b4 {[%emt 0:00:40]} Be6 {[%emt 0:00:17]} 14. Bb2 {[%emt 0:01:27]} Bf6 {[%emt 0:00:26]} 15. Bxe6 {[%emt 0:00:52]} fxe6 {[%emt 0:00:01]} 16. f4 {[%emt 0:00:20]} e5 {[%emt 0:00:29]} 17. c3 {[%emt 0:01:46]} c5 {[%emt 0:01:50]} 18. cxd4 {[%emt 0:00:18]} cxd4 {[%emt 0:00:34]} 19. Qb3+ {[%emt 0:00:25]} Kh8 {[%emt 0:00:01]} 20. Rac1 {[%emt 0:00:14]} exf4 {[%emt 0:00:42]} 21. Qd5 {[%emt 0:00:12]} Be5 {[%emt 0:05:56]} 22. Bxd4 {[%emt 0:00:19]} Qg5 {[%emt 0:00:21]} 23. Bf2 {[%emt 0:02:39]} f3 {[%emt 0:01:03]} 24. g3 {[%emt 0:00:05]} Qg4 {[%emt 0:00:27]} 25. Be1 {[%emt 0:03:12]} Bf4 {[%emt 0:01:06]} 26. Rc2 {[%emt 0:00:40]} Rbc8 {[%emt 0:00:01]} 27. Rxc8 {[%emt 0:01:22]} Be3+ {[%emt 0:00:50]} 28. Bf2 {[%emt 0:01:07]} Bxf2+ {[%emt 0:00:03]} 29. Kxf2 {[%emt 0:00:17]} Qxc8 {[%emt 0:00:21]} 30. Qxd6 {[%emt 0:00:51]} Qc2+ {[%emt 0:00:55]} 31. Ke3 {[%emt 0:00:03]} Qe2+ {[%emt 0:00:02]} 32. Kd4 {[%emt 0:00:02]} Rg8 {[%emt 0:00:11]} 33. Rb1 {[%emt 0:02:15]} f2 {[%emt 0:00:11]} 34. Qf4 {[%emt 0:00:15]} Rd8+ {[%emt 0:00:05]} 35. Ke5 {[%emt 0:00:09]} Qxd3 {[%emt 0:00:15]} 36. Qf7 {[%emt 0:00:15]} Qxb1 {[%emt 0:00:28]} 0-1

[Event "3rd CNE NED-ch Women Rapid 2017"]
[Site "Amstelveen"]
[Date "2017.12.03"]
[Round "7"]
[White "De Mie, Mariska"]
[Black "Lanchava, Tea"]
[Result "0-1"]
[ECO "B06"]
[WhiteElo "2242"]
[BlackElo "2297"]
[Annotator "ChessBase"]
[PlyCount "131"]
[EventDate "2017.??.??"]
[EventType "tourn"]
[EventCountry "NED"]
[SourceTitle "playchess.com"]
[Source "ChessBase"]
[SourceQuality "1"]
[TimeControl "900+10"]

1. e4 {[%emt 0:00:00]} g6 {[%emt 0:00:02]} 2. d4 {[%emt 0:00:00]} c6 {[%emt 0:00:02]} 3. Nc3 {[%emt 0:00:14]} Bg7 {[%emt 0:00:05]} 4. Bc4 {[%emt 0:00:47]} b5 {[%emt 0:00:06]} 5. Bb3 {[%emt 0:00:09]} b4 {[%emt 0:00:10]} 6. Nce2 {[%emt 0:00:26]} d6 {[%emt 0:00:50]} 7. Nf3 {[%emt 0:00:29]} Nf6 {[%emt 0:00:45]} 8. Ng3 {[%emt 0:00:24]} Ba6 {[%emt 0:00:14]} 9. h4 {[%emt 0:01:39]} h6 {[%emt 0:00:25]} 10. h5 {[%emt 0:00:26]} g5 {[%emt 0:00:24]} 11. Nf5 {[%emt 0:00:49]} Bf8 {[%emt 0:00:02]} 12. e5 {[%emt 0:00:39]} Nd5 {[%emt 0:01:45]} 13. Bxd5 {[%emt 0:01:31]} cxd5 {[%emt 0:00:03]} 14. Ne3 {[%emt 0:00:58]} e6 {[%emt 0:00:38]} 15. Ng4 {[%emt 0:00:39]} Nd7 {[%emt 0:00:48]} 16. Be3 {[%emt 0:00:22]} Bg7 {[%emt 0:01:11]} 17. Qd2 {[%emt 0:00:55]} Qb6 {[%emt 0:00:00]} 18. Kd1 {[%emt 0:02:30]} O-O-O {[%emt 0:01:29]} 19. c3 {[%emt 0:00:27]} bxc3 {[%emt 0:00:41]} 20. Rc1 {[%emt 0:01:16]} Kb7 {[%emt 0:01:26]} 21. Rxc3 {[%emt 0:00:03]} Ka8 {[%emt 0:00:48]} 22. Kc1 {[%emt 0:01:35]} Rc8 {[%emt 0:00:02]} 23. Kb1 {[%emt 0:00:06]} Rxc3 {[%emt 0:00:02]} 24. Qxc3 {[%emt 0:00:01]} Rc8 {[%emt 0:00:02]} 25. Qd2 {[%emt 0:00:27]} Bf8 {[%emt 0:01:39]} 26. Rc1 {[%emt 0:00:14]} Rb8 {[%emt 0:00:09]} 27. Ka1 {[%emt 0:00:26]} Qb5 {[%emt 0:00:18]} 28. exd6 {[%emt 0:00:21]} Bxd6 {[%emt 0:00:07]} 29. Nxh6 {[%emt 0:00:01]} Bb4 {[%emt 0:00:06]} 30. Qc2 {[%emt 0:00:09]} f6 {[%emt 0:00:18]} 31. Ng4 {[%emt 0:00:10]} Rc8 {[%emt 0:01:46]} 32. Qd1 {[%emt 0:00:07]} Rh8 {[%emt 0:00:03]} 33. h6 {[%emt 0:00:08]} f5 {[%emt 0:00:22]} 34. Nge5 {[%emt 0:00:02]} f4 {[%emt 0:00:15]} 35. Bd2 {[%emt 0:00:05]} Nxe5 {[%emt 0:00:15]} 36. Nxe5 {[%emt 0:00:13]} Rxh6 {[%emt 0:00:39]} 37. Bxb4 {[%emt 0:00:12]} Qxb4 {[%emt 0:00:02]} 38. Qc2 {[%emt 0:00:07]} Bb7 {[%emt 0:00:32]} 39. Nf7 {[%emt 0:00:08]} Rh2 {[%emt 0:00:12]} 40. Qg6 {[%emt 0:00:40]} a6 {[%emt 0:00:44]} 41. Qg8+ {[%emt 0:00:50]} Ka7 {[%emt 0:00:02]} 42. Qxg5 {[%emt 0:00:23]} Qxd4 {[%emt 0:00:10]} 43. Nd8 {[%emt 0:00:32]} Rh7 {[%emt 0:01:24]} 44. Nxe6 {[%emt 0:00:05]} Qxf2 {[%emt 0:00:51]} 45. Qxf4 {[%emt 0:00:05]} Qb6 {[%emt 0:00:25]} 46. Nd4 {[%emt 0:00:12]} Re7 {[%emt 0:00:02]} 47. Qd2 {[%emt 0:00:07]} Re4 {[%emt 0:00:02]} 48. Rd1 {[%emt 0:00:03]} Qf6 {[%emt 0:00:07]} 49. Qb4 {[%emt 0:00:07]} Qf2 {[%emt 0:00:07]} 50. Qc5+ {[%emt 0:00:26]} Ka8 {[%emt 0:00:01]} 51. Nb3 {[%emt 0:00:18]} Qxg2 {[%emt 0:00:04]} 52. Qf8+ {[%emt 0:00:02]} Ka7 {[%emt 0:00:02]} 53. Qc5+ {[%emt 0:00:02]} Kb8 {[%emt 0:00:02]} 54. Qf8+ {[%emt 0:00:02]} Kc7 {[%emt 0:00:05]} 55. Qf7+ {[%emt 0:00:07]} Kb6 {[%emt 0:00:08]} 56. Nc5 {[%emt 0:00:26]} Kxc5 {[%emt 0:00:08]} 57. Qxb7 {[%emt 0:00:01]} Rb4 {[%emt 0:00:17]} 58. Qc7+ {[%emt 0:00:09]} Kb5 {[%emt 0:00:06]} 59. Qb7+ {[%emt 0:00:05]} Ka5 {[%emt 0:00:08]} 60. Rxd5+ {[%emt 0:00:07]} Rb5 {[%emt 0:00:01]} 61. Qc7+ {[%emt 0:00:03]} Ka4 {[%emt 0:00:08]} 62. Qc4+ {[%emt 0:00:12]} Ka5 {[%emt 0:00:01]} 63. Qc7+ {[%emt 0:00:15]} Ka4 {[%emt 0:00:02]} 64. Rd4+ {[%emt 0:00:06]} Rb4 {[%emt 0:00:03]} 65. b3+ {[%emt 0:00:11]} Kb5 {[%emt 0:00:02]} 66. Qb8+ {[%emt 0:00:10]} 0-1

[Event "3rd CNE NED-ch Women Rapid 2017"]
[Site "Amstelveen"]
[Date "2017.12.03"]
[Round "7"]
[White "Keetman, Maaike"]
[Black "De Jong-Muhren, Bianca"]
[Result "1-0"]
[ECO "B49"]
[WhiteElo "2203"]
[BlackElo "2262"]
[Annotator "NA"]
[PlyCount "69"]
[EventDate "2017.??.??"]
[EventType "tourn"]
[EventCountry "NED"]
[SourceTitle "playchess.com"]
[Source "ChessBase"]
[SourceQuality "1"]
[TimeControl "900+10"]

1. e4 {[%emt 0:00:00]} c5 {[%emt 0:00:09]} 2. Nf3 {[%emt 0:00:00]} e6 {[%emt 0:00:01]} 3. d4 {[%emt 0:00:00]} cxd4 {[%emt 0:00:01]} 4. Nxd4 {[%emt 0:00:00]} Nc6 {[%emt 0:00:00]} 5. Nc3 {[%emt 0:00:00]} Qc7 {[%emt 0:00:01]} 6. Be3 {[%emt 0:00:02]} a6 {[%emt 0:00:03]} 7. Be2 {[%emt 0:00:08]} Nf6 {[%emt 0:00:01]} 8. a3 {[%emt 0:00:01]} Be7 {[%emt 0:01:03]} 9. f4 {[%emt 0:00:02]} d6 {[%emt 0:00:01]} 10. g4 {[%emt 0:00:01]} O-O {[%emt 0:02:10]} 11. g5 {[%emt 0:00:54]} Nd7 {[%emt 0:00:11]} 12. Qd2 {[%emt 0:01:01]} b5 {[%emt 0:00:43]} 13. Nxc6 {[%emt 0:00:49]} Qxc6 {[%emt 0:00:01]} 14. O-O-O {[%emt 0:00:17]} Re8 {[%emt 0:00:49]} 15. f5 {[%emt 0:01:48]} Bf8 {[%emt 0:07:05]} 16. f6 {[%emt 0:01:40]} Ne5 {[%emt 0:00:58]} 17. h4 {[%emt 0:01:12]} Bb7 {[%emt 0:01:07]} 18. h5 {[%emt 0:01:04]} Rac8 {[%emt 0:01:17]} 19. Rdf1 {[%emt 0:03:07]} Qd7 {[%emt 0:00:52]} 20. Bd4 {[%emt 0:00:13]} b4 {[%emt 0:01:38]} 21. Bxe5 {[%emt 0:00:34]} bxc3 {[%emt 0:00:01]} 22. Bxc3 {[%emt 0:00:04]} Bxe4 {[%emt 0:00:02]} 23. Rh4 d5 {[%emt 0:00:19]} 24. Rxe4 {[%emt 0:00:21]} Rxc3 {[%emt 0:00:15]} 25. bxc3 {[%emt 0:02:01]} Bxa3+ {[%emt 0:00:01]} 26. Kd1 {[%emt 0:00:01]} Qb7 {[%emt 0:00:06]} 27. Rb4 {[%emt 0:00:02]} Bxb4 {[%emt 0:00:04]} 28. cxb4 {[%emt 0:00:01]} e5 {[%emt 0:00:34]} 29. g6 {[%emt 0:00:33]} hxg6 {[%emt 0:00:16]} 30. hxg6 {[%emt 0:00:02]} Rf8 {[%emt 0:00:05]} 31. fxg7 {[%emt 0:01:16]} Kxg7 {[%emt 0:00:02]} 32. gxf7 {[%emt 0:00:23]} Rxf7 33. Qg5+ {[%emt 0:00:06]} Kf8 {[%emt 0:00:10]} 34. Qd8+ {[%emt 0:00:04]} Kg7 {[%emt 0:00:01]} 35. Rg1+ {[%emt 0:00:02]} 1-0

[Event "3rd CNE NED-ch Women Rapid 2017"]
[Site "Amstelveen"]
[Date "2017.12.03"]
[Round "7"]
[White "Kazarian, Anna-Maja"]
[Black "Paulet, Iozefina"]
[Result "0-1"]
[ECO "A00"]
[WhiteElo "2162"]
[BlackElo "2272"]
[Annotator "NA"]
[PlyCount "73"]
[EventDate "2017.??.??"]
[EventType "tourn"]
[EventCountry "NED"]
[SourceTitle "playchess.com"]
[Source "ChessBase"]
[SourceQuality "1"]
[TimeControl "900+10"]

1. g3 {[%emt 0:00:00]} c5 {[%emt 0:00:30]} 2. Bg2 {[%emt 0:00:00]} Nc6 {[%emt 0:00:01]} 3. Nf3 {[%emt 0:00:00]} Nf6 {[%emt 0:00:11]} 4. O-O {[%emt 0:00:08]} d5 {[%emt 0:00:01]} 5. b3 {[%emt 0:00:56]} e5 {[%emt 0:00:11]} 6. Bb2 {[%emt 0:00:14]} Bd6 {[%emt 0:00:09]} 7. d3 {[%emt 0:00:02]} O-O {[%emt 0:00:24]} 8. Nbd2 {[%emt 0:00:03]} Bg4 {[%emt 0:01:43]} 9. e4 {[%emt 0:00:36]} d4 {[%emt 0:00:49]} 10. h3 {[%emt 0:01:01]} Bxf3 {[%emt 0:00:10]} 11. Nxf3 {[%emt 0:00:19]} b5 {[%emt 0:00:01]} 12. a4 {[%emt 0:00:15]} a6 {[%emt 0:00:02]} 13. Nh4 {[%emt 0:00:51]} Re8 {[%emt 0:00:00]} 14. Nf5 {[%emt 0:00:05]} Bf8 {[%emt 0:00:01]} 15. g4 {[%emt 0:00:15]} c4 {[%emt 0:00:16]} 16. bxc4 {[%emt 0:00:37]} bxc4 {[%emt 0:00:01]} 17. Ba3 {[%emt 0:02:59]} Bxa3 {[%emt 0:00:27]} 18. Rxa3 {[%emt 0:00:01]} c3 {[%emt 0:00:01]} 19. g5 {[%emt 0:00:07]} Nd7 {[%emt 0:00:06]} 20. Qg4 {[%emt 0:00:06]} Nf8 {[%emt 0:00:11]} 21. h4 {[%emt 0:02:47]} Nb4 {[%emt 0:00:07]} 22. Rb3 {[%emt 0:01:38]} a5 {[%emt 0:00:12]} 23. f4 {[%emt 0:00:43]} Nxc2 {[%emt 0:01:28]} 24. fxe5 {[%emt 0:00:13]} Ng6 {[%emt 0:00:47]} 25. Rb5 {[%emt 0:00:48]} Nb4 {[%emt 0:02:51]} 26. Qg3 {[%emt 0:01:46]} Rb8 {[%emt 0:03:32]} 27. e6 {[%emt 0:00:29]} fxe6 {[%emt 0:00:45]} 28. Rxb8 {[%emt 0:00:47]} Qxb8 {[%emt 0:00:01]} 29. Qxb8 {[%emt 0:00:02]} Rxb8 {[%emt 0:00:01]} 30. Nxd4 {[%emt 0:00:02]} e5 {[%emt 0:00:07]} 31. Nb5 {[%emt 0:00:54]} c2 {[%emt 0:01:20]} 32. Rc1 {[%emt 0:01:19]} Rc8 {[%emt 0:00:21]} 33. Bh3 {[%emt 0:00:10]} Rc5 {[%emt 0:00:19]} 34. Nd6 {[%emt 0:00:13]} Nxd3 {[%emt 0:00:25]} 35. Be6+ {[%emt 0:00:11]} Kf8 {[%emt 0:00:01]} 36. Rf1+ {[%emt 0:00:07]} Ngf4 {[%emt 0:00:05]} 37. Bc4 {[%emt 0:00:26]} 0-1